[Event "*** Titled Tuesday Blitz"]
[Site "Chess.com"]
[Date "2020.11.10"]
[Round "4"]
[White "Lupul_Cenusiu"]
[Black "TigrVShlyape"]
[Result "0-1"]
[WhiteElo "2555"]
[BlackElo "2857"]
[TimeControl "180+1"]
[EndTime "10:42:18 PST"]
[Termination "TigrVShlyape won on time"]

1. d4 {[%clk 0:03:00.9]} 1... d5 {[%clk 0:02:59]} 2. c4 {[%clk 0:03:00.4]} 2...
c6 {[%clk 0:02:58.3]} 3. Nc3 {[%clk 0:02:59.8]} 3... Nf6 {[%clk 0:02:57.4]} 4.
Nf3 {[%clk 0:02:59]} 4... a6 {[%clk 0:02:56.5]} 5. e3 {[%clk 0:02:57.6]} 5... g6
{[%clk 0:02:52.8]} 6. h3 {[%clk 0:02:56.1]} 6... Bg7 {[%clk 0:02:51.5]} 7. cxd5
{[%clk 0:02:54.2]} 7... cxd5 {[%clk 0:02:49.8]} 8. Bd3 {[%clk 0:02:54.1]} 8...
O-O {[%clk 0:02:49.2]} 9. O-O {[%clk 0:02:53.5]} 9... Nc6 {[%clk 0:02:45.9]} 10.
Bd2 {[%clk 0:02:53.1]} 10... e6 {[%clk 0:02:34]} 11. a4 {[%clk 0:02:40.2]} 11...
a5 {[%clk 0:02:30.2]} 12. Qb3 {[%clk 0:02:25.3]} 12... Bd7 {[%clk 0:02:25.9]}
13. Rfc1 {[%clk 0:02:22]} 13... Qb8 {[%clk 0:02:24.6]} 14. Be1 {[%clk
0:02:18.2]} 14... Rd8 {[%clk 0:02:22.9]} 15. Bb5 {[%clk 0:02:10.4]} 15... Ne8
{[%clk 0:02:20.4]} 16. Ne2 {[%clk 0:02:01.8]} 16... Nd6 {[%clk 0:02:19.2]} 17.
Nf4 {[%clk 0:02:01.8]} 17... Be8 {[%clk 0:02:13.3]} 18. Bf1 {[%clk 0:01:54.7]}
18... Rc8 {[%clk 0:02:10.2]} 19. Nd3 {[%clk 0:01:39]} 19... b6 {[%clk
0:02:07.8]} 20. Nde5 {[%clk 0:01:35.8]} 20... Qb7 {[%clk 0:01:59.1]} 21. Nxc6
{[%clk 0:01:31.6]} 21... Rxc6 {[%clk 0:01:56.7]} 22. Ne5 {[%clk 0:01:12.4]}
22... Rc7 {[%clk 0:01:55.7]} 23. Rxc7 {[%clk 0:01:06.4]} 23... Qxc7 {[%clk
0:01:54.9]} 24. Bd3 {[%clk 0:01:00.8]} 24... Rc8 {[%clk 0:01:43.4]} 25. Bd2
{[%clk 0:00:59.2]} 25... Qb7 {[%clk 0:01:37.5]} 26. Qa3 {[%clk 0:00:48.9]} 26...
Bf8 {[%clk 0:01:36.5]} 27. Qb3 {[%clk 0:00:47.9]} 27... Be7 {[%clk 0:01:33.4]}
28. g3 {[%clk 0:00:45.8]} 28... f6 {[%clk 0:01:32]} 29. Nf3 {[%clk 0:00:44.9]}
29... Kg7 {[%clk 0:01:22.2]} 30. Bc3 {[%clk 0:00:35.9]} 30... Bd7 {[%clk
0:01:19]} 31. Kh2 {[%clk 0:00:33.6]} 31... Ne4 {[%clk 0:01:16.8]} 32. Bxe4
{[%clk 0:00:19.9]} 32... dxe4 {[%clk 0:01:16.2]} 33. Nd2 {[%clk 0:00:19.6]}
33... Rc7 {[%clk 0:00:57.9]} 34. Qc2 {[%clk 0:00:16.9]} 34... Bc6 {[%clk
0:00:56.2]} 35. Qd1 {[%clk 0:00:12.9]} 35... Bd5 {[%clk 0:00:55.2]} 36. Qe2
{[%clk 0:00:12]} 36... Kf7 {[%clk 0:00:53.7]} 37. h4 {[%clk 0:00:11.3]} 37...
Bd6 {[%clk 0:00:49.4]} 38. Kg2 {[%clk 0:00:08.7]} 38... h5 {[%clk 0:00:47.5]}
39. Qd1 {[%clk 0:00:07.8]} 39... Qc8 {[%clk 0:00:41]} 40. Qe2 {[%clk 0:00:06.6]}
40... Qb7 {[%clk 0:00:30.1]} 41. Qb5 {[%clk 0:00:04.3]} 41... Qc6 {[%clk
0:00:29]} 42. Qe2 {[%clk 0:00:01.6]} 42... Bb4 {[%clk 0:00:28.2]} 0-1

[Event "*** Titled Tuesday Blitz"]
[Site "Chess.com"]
[Date "2020.11.10"]
[Round "4"]
[White "Klavdia_Nik"]
[Black "Buryshin_Vasyl"]
[Result "1-0"]
[WhiteElo "2124"]
[BlackElo "2254"]
[TimeControl "180+1"]
[EndTime "10:42:18 PST"]
[Termination "Klavdia_Nik won by resignation"]

1. Nf3 {[%clk 0:02:51.3]} 1... d5 {[%clk 0:02:58.8]} 2. c4 {[%clk 0:02:48.8]}
2... c6 {[%clk 0:02:50.5]} 3. b3 {[%clk 0:02:48.5]} 3... Nf6 {[%clk 0:02:49.9]}
4. Bb2 {[%clk 0:02:47.2]} 4... Nbd7 {[%clk 0:02:44.3]} 5. g3 {[%clk 0:02:43.2]}
5... e6 {[%clk 0:02:41.4]} 6. Bg2 {[%clk 0:02:43.5]} 6... Be7 {[%clk 0:02:41.5]}
7. O-O {[%clk 0:02:41.4]} 7... O-O {[%clk 0:02:42]} 8. d3 {[%clk 0:02:39.5]}
8... Qc7 {[%clk 0:02:19.9]} 9. Nbd2 {[%clk 0:02:34.3]} 9... Rd8 {[%clk
0:02:12.2]} 10. Qc2 {[%clk 0:02:33]} 10... dxc4 {[%clk 0:01:59]} 11. bxc4 {[%clk
0:02:26.6]} 11... Rb8 {[%clk 0:01:41.1]} 12. a4 {[%clk 0:02:20.4]} 12... b6
{[%clk 0:01:41.2]} 13. Bc3 {[%clk 0:02:18.4]} 13... Bb7 {[%clk 0:01:41.3]} 14.
Rfb1 {[%clk 0:01:48.7]} 14... Bc5 {[%clk 0:01:11.8]} 15. d4 {[%clk 0:01:45.2]}
15... Be7 {[%clk 0:01:08.1]} 16. e4 {[%clk 0:01:45.6]} 16... e5 {[%clk
0:01:05.6]} 17. d5 {[%clk 0:01:13.4]} 17... Nc5 {[%clk 0:00:58.6]} 18. Bxe5
{[%clk 0:01:08.3]} 18... Qd7 {[%clk 0:00:52.8]} 19. Bxb8 {[%clk 0:01:05.8]}
19... Rxb8 {[%clk 0:00:50.7]} 20. e5 {[%clk 0:01:04.2]} 20... Ne8 {[%clk
0:00:43.2]} 21. d6 {[%clk 0:00:54.9]} 21... Bd8 {[%clk 0:00:37.1]} 22. Nd4
{[%clk 0:00:49.2]} 22... f6 {[%clk 0:00:36.1]} 23. Qf5 {[%clk 0:00:41.1]} 23...
Qf7 {[%clk 0:00:28.5]} 24. e6 {[%clk 0:00:35.4]} 24... Qg6 {[%clk 0:00:20.1]}
25. Qxg6 {[%clk 0:00:26.2]} 25... hxg6 {[%clk 0:00:21]} 26. e7 {[%clk
0:00:26.8]} 26... Rc8 {[%clk 0:00:18.8]} 27. exd8=Q {[%clk 0:00:25.7]} 27...
Rxd8 {[%clk 0:00:19.7]} 28. Nxc6 {[%clk 0:00:23.1]} 28... Bxc6 {[%clk
0:00:19.6]} 29. Bxc6 {[%clk 0:00:22.1]} 29... Nxd6 {[%clk 0:00:18.6]} 30. Nf3
{[%clk 0:00:19.6]} 30... Nxc4 {[%clk 0:00:15.7]} 31. Rd1 {[%clk 0:00:15.9]}
31... Rxd1+ {[%clk 0:00:14.2]} 32. Rxd1 {[%clk 0:00:15]} 32... Kf7 {[%clk
0:00:15]} 33. Bd5+ {[%clk 0:00:15.2]} 33... Ke7 {[%clk 0:00:13.4]} 34. Bxc4
{[%clk 0:00:15.8]} 34... Ke8 {[%clk 0:00:12.2]} 35. Bb5+ {[%clk 0:00:15.6]}
35... Ke7 {[%clk 0:00:11.9]} 36. Nd4 {[%clk 0:00:14.6]} 36... Kd6 {[%clk
0:00:11.1]} 1-0

[Event "*** Titled Tuesday Blitz"]
[Site "Chess.com"]
[Date "2020.11.10"]
[Round "4"]
[White "horripile"]
[Black "alejanchess73"]
[Result "1-0"]
[WhiteElo "2671"]
[BlackElo "2471"]
[TimeControl "180+1"]
[EndTime "10:42:19 PST"]
[Termination "horripile won by resignation"]

1. e4 {[%clk 0:03:00.9]} 1... e6 {[%clk 0:02:57.8]} 2. d4 {[%clk 0:02:59.5]}
2... d5 {[%clk 0:02:57.8]} 3. Nd2 {[%clk 0:02:58.2]} 3... c5 {[%clk 0:02:56.3]}
4. Ngf3 {[%clk 0:02:57.4]} 4... Nc6 {[%clk 0:02:55.7]} 5. exd5 {[%clk
0:02:52.1]} 5... Qxd5 {[%clk 0:02:55.4]} 6. Bc4 {[%clk 0:02:49.2]} 6... Qd6
{[%clk 0:02:55]} 7. dxc5 {[%clk 0:02:46.2]} 7... Qxc5 {[%clk 0:02:54.3]} 8. O-O
{[%clk 0:02:46.5]} 8... Nf6 {[%clk 0:02:54.5]} 9. a3 {[%clk 0:02:45.3]} 9... Be7
{[%clk 0:02:49.2]} 10. b4 {[%clk 0:02:40.5]} 10... Qb6 {[%clk 0:02:47.1]} 11.
Bd3 {[%clk 0:02:38]} 11... O-O {[%clk 0:02:45.3]} 12. c4 {[%clk 0:02:37.5]}
12... Rd8 {[%clk 0:02:44.3]} 13. c5 {[%clk 0:02:25.3]} 13... Qc7 {[%clk
0:02:42.5]} 14. Qc2 {[%clk 0:02:18.3]} 14... a6 {[%clk 0:02:41.8]} 15. Bb2
{[%clk 0:02:17.4]} 15... h6 {[%clk 0:02:39.1]} 16. Nc4 {[%clk 0:02:15.9]} 16...
Bd7 {[%clk 0:02:28]} 17. Rfd1 {[%clk 0:02:14.1]} 17... Be8 {[%clk 0:02:20.5]}
18. Rac1 {[%clk 0:02:08.7]} 18... Nd5 {[%clk 0:02:13]} 19. Be4 {[%clk
0:02:08.1]} 19... Nf6 {[%clk 0:01:58.8]} 20. Bd3 {[%clk 0:02:01.5]} 20... Nd5
{[%clk 0:01:57.6]} 21. Bf1 {[%clk 0:01:58.7]} 21... Rac8 {[%clk 0:01:52.9]} 22.
Nfe5 {[%clk 0:01:56.3]} 22... Nf6 {[%clk 0:01:19]} 23. g3 {[%clk 0:01:43.4]}
23... Rxd1 {[%clk 0:01:14.2]} 24. Rxd1 {[%clk 0:01:43.1]} 24... Rd8 {[%clk
0:01:13.1]} 25. Bg2 {[%clk 0:01:42.3]} 25... Nxe5 {[%clk 0:01:03]} 26. Bxe5
{[%clk 0:01:41.4]} 26... Qc8 {[%clk 0:00:31.4]} 27. Nb6 {[%clk 0:01:39.6]} 27...
Rxd1+ {[%clk 0:00:23.4]} 28. Qxd1 {[%clk 0:01:40.5]} 28... Qd8 {[%clk
0:00:20.8]} 29. Qxd8 {[%clk 0:01:36.8]} 29... Bxd8 {[%clk 0:00:21.7]} 30. Bxb7
{[%clk 0:01:36.9]} 30... Bb5 {[%clk 0:00:22.1]} 31. f3 {[%clk 0:01:24.2]} 31...
Ne8 {[%clk 0:00:18.6]} 32. Kf2 {[%clk 0:01:22.1]} 32... f6 {[%clk 0:00:18.7]}
33. Bb8 {[%clk 0:01:21.7]} 33... e5 {[%clk 0:00:18.9]} 34. Ke3 {[%clk
0:01:21.2]} 34... Kf7 {[%clk 0:00:18.5]} 35. Bd5+ {[%clk 0:01:19.9]} 35... Kg6
{[%clk 0:00:18.4]} 36. a4 {[%clk 0:01:17.2]} 36... Bf1 {[%clk 0:00:17.6]} 37.
Bc4 {[%clk 0:01:15.1]} 37... Bxc4 {[%clk 0:00:16.8]} 38. Nxc4 {[%clk 0:01:15.4]}
38... Kf5 {[%clk 0:00:13.2]} 39. b5 {[%clk 0:01:14]} 39... axb5 {[%clk
0:00:13.4]} 40. axb5 {[%clk 0:01:14.9]} 40... Ke6 {[%clk 0:00:14.1]} 41. Nd6
{[%clk 0:01:09.5]} 41... Nxd6 {[%clk 0:00:11.7]} 42. Bxd6 {[%clk 0:01:10.4]}
42... Kd5 {[%clk 0:00:11.6]} 43. Bf8 {[%clk 0:01:10.1]} 43... g6 {[%clk
0:00:11.6]} 44. Kd3 {[%clk 0:01:07.3]} 44... f5 {[%clk 0:00:11.8]} 45. c6 {[%clk
0:01:05.9]} 45... e4+ {[%clk 0:00:11.5]} 46. fxe4+ {[%clk 0:01:04.3]} 46...
fxe4+ {[%clk 0:00:12.4]} 47. Kc3 {[%clk 0:01:02.2]} 47... Ba5+ {[%clk
0:00:11.6]} 48. Kc2 {[%clk 0:00:56.1]} 48... Kc4 {[%clk 0:00:11]} 49. Bd6 {[%clk
0:00:49.1]} 49... Kxb5 {[%clk 0:00:10.8]} 50. c7 {[%clk 0:00:49.2]} 50... e3
{[%clk 0:00:09.6]} 51. c8=Q {[%clk 0:00:47.7]} 51... e2 {[%clk 0:00:09.6]} 52.
Qe8+ {[%clk 0:00:47.1]} 1-0

[Event "*** Titled Tuesday Blitz"]
[Site "Chess.com"]
[Date "2020.11.10"]
[Round "4"]
[White "dpopadic"]
[Black "26andrej26"]
[Result "0-1"]
[WhiteElo "2346"]
[BlackElo "2535"]
[TimeControl "180+1"]
[EndTime "10:42:19 PST"]
[Termination "26andrej26 won on time"]

1. e4 {[%clk 0:03:00.9]} 1... Nf6 {[%clk 0:03:00.1]} 2. e5 {[%clk 0:03:00.2]}
2... Nd5 {[%clk 0:03:00.3]} 3. d4 {[%clk 0:03:00.3]} 3... d6 {[%clk 0:02:59.6]}
4. Nf3 {[%clk 0:03:00.4]} 4... Nb6 {[%clk 0:02:59.4]} 5. a4 {[%clk 0:02:59.6]}
5... dxe5 {[%clk 0:02:56.5]} 6. a5 {[%clk 0:02:58.7]} 6... N6d7 {[%clk
0:02:53.5]} 7. dxe5 {[%clk 0:02:57.5]} 7... e6 {[%clk 0:02:52.4]} 8. Nc3 {[%clk
0:02:49.9]} 8... Nc6 {[%clk 0:02:49.1]} 9. Bf4 {[%clk 0:02:44.3]} 9... a6 {[%clk
0:02:42.8]} 10. Bc4 {[%clk 0:02:33.2]} 10... Be7 {[%clk 0:02:42.2]} 11. O-O
{[%clk 0:02:31.3]} 11... g5 {[%clk 0:02:42.2]} 12. Bg3 {[%clk 0:02:27.8]} 12...
g4 {[%clk 0:02:42.5]} 13. Nd2 {[%clk 0:02:08]} 13... Ndxe5 {[%clk 0:02:42]} 14.
Qe2 {[%clk 0:02:07]} 14... Nxc4 {[%clk 0:02:37.1]} 15. Nxc4 {[%clk 0:02:05.9]}
15... h5 {[%clk 0:01:32.4]} 16. Rad1 {[%clk 0:02:04.3]} 16... Bd7 {[%clk
0:01:32.7]} 17. Rd2 {[%clk 0:01:31.5]} 17... h4 {[%clk 0:01:14.1]} 18. Bf4
{[%clk 0:01:30.5]} 18... Bg5 {[%clk 0:01:11.9]} 19. Rxd7 {[%clk 0:01:23.3]}
19... Qxd7 {[%clk 0:01:02]} 20. Bxg5 {[%clk 0:01:22.5]} 20... Nd4 {[%clk
0:00:39.2]} 21. Qd3 {[%clk 0:01:02]} 21... Nf5 {[%clk 0:00:25.8]} 22. Qe2 {[%clk
0:00:51]} 22... Rg8 {[%clk 0:00:22.2]} 23. Rd1 {[%clk 0:00:38.3]} 23... Qc6
{[%clk 0:00:12.9]} 24. Ne5 {[%clk 0:00:29.2]} 24... Qc5 {[%clk 0:00:06.3]} 25.
Ne4 {[%clk 0:00:23.8]} 25... Qxa5 {[%clk 0:00:04.1]} 26. Nf6+ {[%clk 0:00:18.9]}
26... Kf8 {[%clk 0:00:04.4]} 27. Nxg8 {[%clk 0:00:15]} 27... Kxg8 {[%clk
0:00:04.5]} 28. Nxg4 {[%clk 0:00:10.4]} 28... Kg7 {[%clk 0:00:03.5]} 29. Bf6+
{[%clk 0:00:09.1]} 29... Kg6 {[%clk 0:00:03]} 30. Bc3 {[%clk 0:00:08.4]} 30...
Qb5 {[%clk 0:00:02]} 31. Ne5+ {[%clk 0:00:08.3]} 31... Kf6 {[%clk 0:00:01.7]}
0-1

[Event "*** Titled Tuesday Blitz"]
[Site "Chess.com"]
[Date "2020.11.10"]
[Round "4"]
[White "Tactictic"]
[Black "cassoulet"]
[Result "1-0"]
[WhiteElo "2434"]
[BlackElo "2630"]
[TimeControl "180+1"]
[EndTime "10:42:20 PST"]
[Termination "Tactictic won by checkmate"]

1. e4 {[%clk 0:03:00.9]} 1... e6 {[%clk 0:02:58.3]} 2. d4 {[%clk 0:03:00.1]}
2... d5 {[%clk 0:02:59.2]} 3. Nd2 {[%clk 0:02:59.4]} 3... c5 {[%clk 0:02:57.7]}
4. exd5 {[%clk 0:02:58]} 4... Qxd5 {[%clk 0:02:47.4]} 5. Ngf3 {[%clk 0:02:58.9]}
5... cxd4 {[%clk 0:02:41.2]} 6. Bc4 {[%clk 0:02:55.1]} 6... Qd6 {[%clk
0:02:40.7]} 7. O-O {[%clk 0:02:54.5]} 7... Nf6 {[%clk 0:02:40]} 8. Nb3 {[%clk
0:02:51.8]} 8... Nc6 {[%clk 0:02:37.2]} 9. Nbxd4 {[%clk 0:02:50.5]} 9... Nxd4
{[%clk 0:02:31.7]} 10. Nxd4 {[%clk 0:02:31]} 10... Be7 {[%clk 0:02:31.3]} 11. c3
{[%clk 0:02:21.4]} 11... O-O {[%clk 0:02:30.8]} 12. Qf3 {[%clk 0:02:15]} 12...
Qc7 {[%clk 0:02:28.3]} 13. Bb3 {[%clk 0:02:15.2]} 13... a5 {[%clk 0:02:23.9]}
14. a4 {[%clk 0:01:48.3]} 14... Bd7 {[%clk 0:02:23.4]} 15. Bf4 {[%clk 0:01:18]}
15... Bd6 {[%clk 0:02:22.9]} 16. Bxd6 {[%clk 0:01:15.3]} 16... Qxd6 {[%clk
0:02:23.8]} 17. Rad1 {[%clk 0:01:15.2]} 17... Qc7 {[%clk 0:02:19.4]} 18. Rfe1
{[%clk 0:01:12.4]} 18... Rad8 {[%clk 0:02:18]} 19. Qg3 {[%clk 0:01:03.2]} 19...
Qxg3 {[%clk 0:02:15.6]} 20. hxg3 {[%clk 0:01:04.1]} 20... Rfe8 {[%clk 0:02:16]}
21. Nf3 {[%clk 0:01:01.1]} 21... Bc6 {[%clk 0:02:14.5]} 22. Ne5 {[%clk 0:01:00]}
22... Bd5 {[%clk 0:02:11.5]} 23. Bxd5 {[%clk 0:00:58.3]} 23... Nxd5 {[%clk
0:02:10]} 24. Rd4 {[%clk 0:00:51.6]} 24... f6 {[%clk 0:01:53]} 25. Nc4 {[%clk
0:00:40]} 25... e5 {[%clk 0:01:43.5]} 26. Rd3 {[%clk 0:00:38.6]} 26... Ne7
{[%clk 0:01:29.4]} 27. Rxd8 {[%clk 0:00:28]} 27... Rxd8 {[%clk 0:01:30.3]} 28.
Nxa5 {[%clk 0:00:28.8]} 28... Ra8 {[%clk 0:01:30.5]} 29. Nxb7 {[%clk 0:00:28.1]}
29... Rxa4 {[%clk 0:01:31.4]} 30. Nc5 {[%clk 0:00:27.9]} 30... Ra2 {[%clk
0:01:31.3]} 31. b4 {[%clk 0:00:27.3]} 31... Rc2 {[%clk 0:01:30.5]} 32. Ne4
{[%clk 0:00:18.9]} 32... f5 {[%clk 0:01:27.8]} 33. Nd6 {[%clk 0:00:18]} 33... e4
{[%clk 0:01:25.2]} 34. c4 {[%clk 0:00:18.1]} 34... g6 {[%clk 0:01:23.5]} 35. b5
{[%clk 0:00:16.2]} 35... Kf8 {[%clk 0:01:20.7]} 36. b6 {[%clk 0:00:16.4]} 36...
Nc6 {[%clk 0:01:20.6]} 37. Rd1 {[%clk 0:00:12.9]} 37... Rb2 {[%clk 0:01:19.6]}
38. Nb5 {[%clk 0:00:08.3]} 38... Ke7 {[%clk 0:01:15.9]} 39. b7 {[%clk
0:00:08.7]} 39... h5 {[%clk 0:01:10.8]} 40. Rd6 {[%clk 0:00:08]} 40... Ne5
{[%clk 0:01:07.4]} 41. f3 {[%clk 0:00:02]} 41... exf3 {[%clk 0:01:02.1]} 42.
b8=Q {[%clk 0:00:01.4]} 42... Rb1+ {[%clk 0:00:53.9]} 43. Kf2 {[%clk 0:00:01.9]}
43... Ng4+ {[%clk 0:00:49.9]} 44. Kxf3 {[%clk 0:00:02.1]} 44... Rf1+ {[%clk
0:00:49.2]} 45. Ke2 {[%clk 0:00:03]} 45... Rf2+ {[%clk 0:00:49.6]} 46. Ke1
{[%clk 0:00:03.6]} 46... Kf7 {[%clk 0:00:48.4]} 47. Qc7+ {[%clk 0:00:00.3]}
47... Kf8 {[%clk 0:00:47.8]} 48. Rd8# {[%clk 0:00:01.2]} 1-0

[Event "*** Titled Tuesday Blitz"]
[Site "Chess.com"]
[Date "2020.11.10"]
[Round "4"]
[White "olksuna"]
[Black "Shtembuliak"]
[Result "0-1"]
[WhiteElo "2627"]
[BlackElo "2872"]
[TimeControl "180+1"]
[EndTime "10:42:21 PST"]
[Termination "Shtembuliak won on time"]

1. d4 {[%clk 0:03:00.9]} 1... g6 {[%clk 0:02:59.8]} 2. e4 {[%clk 0:03:00]} 2...
d6 {[%clk 0:02:59.9]} 3. Nf3 {[%clk 0:02:59.8]} 3... Nf6 {[%clk 0:03:00.1]} 4.
Bd3 {[%clk 0:02:59.1]} 4... Bg7 {[%clk 0:03:00.4]} 5. O-O {[%clk 0:02:59.2]}
5... O-O {[%clk 0:03:01]} 6. Re1 {[%clk 0:02:58.6]} 6... Nc6 {[%clk 0:03:01.1]}
7. d5 {[%clk 0:02:53.5]} 7... Nb4 {[%clk 0:02:48.3]} 8. Bf1 {[%clk 0:02:53]}
8... a5 {[%clk 0:02:48.7]} 9. a3 {[%clk 0:02:40.5]} 9... Na6 {[%clk 0:02:48.7]}
10. Nc3 {[%clk 0:02:41]} 10... c6 {[%clk 0:02:47.8]} 11. h3 {[%clk 0:02:39.3]}
11... Nd7 {[%clk 0:02:38.8]} 12. Bg5 {[%clk 0:02:36.4]} 12... Ndc5 {[%clk
0:02:35.5]} 13. e5 {[%clk 0:02:28.8]} 13... dxe5 {[%clk 0:02:32.4]} 14. dxc6
{[%clk 0:02:23.8]} 14... bxc6 {[%clk 0:02:28]} 15. Qxd8 {[%clk 0:02:15.4]} 15...
Rxd8 {[%clk 0:02:28.9]} 16. Bxe7 {[%clk 0:02:15.6]} 16... Re8 {[%clk 0:02:28.7]}
17. Bd6 {[%clk 0:02:01.3]} 17... e4 {[%clk 0:02:19.8]} 18. Nd2 {[%clk
0:01:36.9]} 18... f5 {[%clk 0:02:16.6]} 19. f3 {[%clk 0:01:31]} 19... Bd4+
{[%clk 0:02:03.4]} 20. Kh1 {[%clk 0:01:30]} 20... Rd8 {[%clk 0:01:13.6]} 21. Nc4
{[%clk 0:01:23.1]} 21... Bxc3 {[%clk 0:01:05]} 22. bxc3 {[%clk 0:01:21.3]} 22...
Be6 {[%clk 0:01:04.6]} 23. Rab1 {[%clk 0:00:56.2]} 23... Na4 {[%clk 0:00:46.4]}
24. Rb7 {[%clk 0:00:44.3]} 24... N6c5 {[%clk 0:00:33]} 25. Re7 {[%clk
0:00:35.1]} 25... Rd7 {[%clk 0:00:33.1]} 26. Rxe6 {[%clk 0:00:27.2]} 26... Nxe6
{[%clk 0:00:31.2]} 27. fxe4 {[%clk 0:00:27.9]} 27... fxe4 {[%clk 0:00:27]} 28.
Rxe4 {[%clk 0:00:27.7]} 28... Nec5 {[%clk 0:00:25.8]} 29. Rd4 {[%clk 0:00:19.1]}
29... Re8 {[%clk 0:00:20.3]} 30. Kh2 {[%clk 0:00:10.7]} 30... Re1 {[%clk
0:00:19.9]} 31. Rf4 {[%clk 0:00:07.3]} 31... Ne6 {[%clk 0:00:17.9]} 32. Rf6
{[%clk 0:00:05.8]} 32... Kg7 {[%clk 0:00:16.2]} 33. Rf3 {[%clk 0:00:03.9]} 33...
Rf7 {[%clk 0:00:13.7]} 34. Be5+ {[%clk 0:00:04]} 34... Kg8 {[%clk 0:00:13.9]}
35. Rxf7 {[%clk 0:00:03.1]} 35... Kxf7 {[%clk 0:00:14.8]} 36. Bd3 {[%clk
0:00:03.6]} 36... Nec5 {[%clk 0:00:12.9]} 37. Bg3 {[%clk 0:00:01.3]} 37... Rc1
{[%clk 0:00:12.1]} 0-1

[Event "*** Titled Tuesday Blitz"]
[Site "Chess.com"]
[Date "2020.11.10"]
[Round "4"]
[White "Nikithebest"]
[Black "HrvojeZagreb"]
[Result "0-1"]
[WhiteElo "2436"]
[BlackElo "2287"]
[TimeControl "180+1"]
[EndTime "10:42:22 PST"]
[Termination "HrvojeZagreb won by checkmate"]

1. e4 {[%clk 0:03:00.9]} 1... e6 {[%clk 0:02:59.9]} 2. Qe2 {[%clk 0:02:56.2]}
2... c5 {[%clk 0:02:59.1]} 3. Nf3 {[%clk 0:02:55.5]} 3... Nc6 {[%clk 0:02:59.4]}
4. c3 {[%clk 0:02:56]} 4... d5 {[%clk 0:02:55.9]} 5. d3 {[%clk 0:02:44]} 5...
Be7 {[%clk 0:02:42.7]} 6. g3 {[%clk 0:02:44.2]} 6... Nf6 {[%clk 0:02:36]} 7. Bg2
{[%clk 0:02:44.1]} 7... h6 {[%clk 0:02:33.7]} 8. O-O {[%clk 0:02:41.6]} 8... O-O
{[%clk 0:02:25.7]} 9. e5 {[%clk 0:02:40.8]} 9... Nd7 {[%clk 0:02:25]} 10. c4
{[%clk 0:02:40.4]} 10... dxc4 {[%clk 0:02:16.4]} 11. dxc4 {[%clk 0:02:40]} 11...
Qc7 {[%clk 0:02:16.3]} 12. Re1 {[%clk 0:02:39.6]} 12... Rd8 {[%clk 0:02:15.7]}
13. Nc3 {[%clk 0:02:39.3]} 13... Nf8 {[%clk 0:02:10.6]} 14. Bf4 {[%clk
0:02:28.3]} 14... Nd4 {[%clk 0:02:07.9]} 15. Nxd4 {[%clk 0:02:27.5]} 15... cxd4
{[%clk 0:01:53.3]} 16. Nb5 {[%clk 0:02:27.5]} 16... Qb6 {[%clk 0:01:53.4]} 17.
a4 {[%clk 0:01:58.7]} 17... a6 {[%clk 0:01:47.2]} 18. a5 {[%clk 0:01:57.4]}
18... Qc5 {[%clk 0:01:46.8]} 19. Na3 {[%clk 0:01:57.5]} 19... g5 {[%clk
0:01:35.4]} 20. Bd2 {[%clk 0:01:57.3]} 20... Ng6 {[%clk 0:01:34.3]} 21. b4
{[%clk 0:01:56.1]} 21... Qc7 {[%clk 0:01:34.1]} 22. Qh5 {[%clk 0:01:55.5]} 22...
Kg7 {[%clk 0:01:32.9]} 23. h4 {[%clk 0:01:54.5]} 23... Rh8 {[%clk 0:01:11]} 24.
hxg5 {[%clk 0:01:51.6]} 24... hxg5 {[%clk 0:01:10.5]} 25. Qe2 {[%clk 0:01:51.3]}
25... Bd7 {[%clk 0:01:07.2]} 26. b5 {[%clk 0:01:46.8]} 26... Rad8 {[%clk
0:00:59.7]} 27. b6 {[%clk 0:01:38]} 27... Qc8 {[%clk 0:00:56.1]} 28. Qg4 {[%clk
0:01:31.4]} 28... Bc6 {[%clk 0:00:54.2]} 29. f3 {[%clk 0:01:17.7]} 29... Rh6
{[%clk 0:00:24.5]} 30. Bxg5 {[%clk 0:01:15.8]} 30... Bxg5 {[%clk 0:00:25.4]} 31.
Qxg5 {[%clk 0:01:15.9]} 31... Rdh8 {[%clk 0:00:25.9]} 32. Qf6+ {[%clk
0:01:16.2]} 32... Kg8 {[%clk 0:00:25.8]} 33. Rad1 {[%clk 0:01:04.3]} 33... Qd7
{[%clk 0:00:25.4]} 34. Rd3 {[%clk 0:00:57.3]} 34... Ne7 {[%clk 0:00:22.2]} 35.
Qf4 {[%clk 0:00:54.6]} 35... Nf5 {[%clk 0:00:21.8]} 36. g4 {[%clk 0:00:54.2]}
36... Nh4 {[%clk 0:00:21.5]} 37. Rxd4 {[%clk 0:00:40.9]} 37... Nxg2 {[%clk
0:00:20.8]} 38. Kxg2 {[%clk 0:00:34.1]} 38... Rh2+ {[%clk 0:00:16.8]} 39. Kf1
{[%clk 0:00:27.5]} 39... Rh1+ {[%clk 0:00:12]} 40. Ke2 {[%clk 0:00:27.6]} 40...
R8h2+ {[%clk 0:00:11.8]} 41. Kd3 {[%clk 0:00:26.3]} 41... Qe7 {[%clk 0:00:07.3]}
42. Rxh1 {[%clk 0:00:16.8]} 42... Qxa3# {[%clk 0:00:06.9]} 0-1

[Event "*** Titled Tuesday Blitz"]
[Site "Chess.com"]
[Date "2020.11.10"]
[Round "4"]
[White "Anton_Demchenko"]
[Black "Federtiu"]
[Result "1-0"]
[WhiteElo "2837"]
[BlackElo "2549"]
[TimeControl "180+1"]
[EndTime "10:42:23 PST"]
[Termination "Anton_Demchenko won on time"]

1. e4 {[%clk 0:03:00.1]} 1... c6 {[%clk 0:02:58.8]} 2. Nf3 {[%clk 0:02:59.4]}
2... d5 {[%clk 0:02:59.7]} 3. d3 {[%clk 0:02:59]} 3... g6 {[%clk 0:02:58.2]} 4.
Qe2 {[%clk 0:02:54.3]} 4... Bg7 {[%clk 0:02:57.6]} 5. g3 {[%clk 0:02:54.8]} 5...
dxe4 {[%clk 0:02:50.1]} 6. dxe4 {[%clk 0:02:54.3]} 6... e5 {[%clk 0:02:50]} 7.
Bg2 {[%clk 0:02:52.7]} 7... Qc7 {[%clk 0:02:43.7]} 8. O-O {[%clk 0:02:52.1]}
8... Nf6 {[%clk 0:02:44.2]} 9. b3 {[%clk 0:02:45.5]} 9... O-O {[%clk 0:02:44.4]}
10. a4 {[%clk 0:02:43.8]} 10... a5 {[%clk 0:02:43.1]} 11. Nbd2 {[%clk
0:02:36.1]} 11... Re8 {[%clk 0:02:40.1]} 12. Nc4 {[%clk 0:02:33.1]} 12... b5
{[%clk 0:02:37]} 13. axb5 {[%clk 0:01:50.3]} 13... cxb5 {[%clk 0:02:37.9]} 14.
Na3 {[%clk 0:01:50.9]} 14... b4 {[%clk 0:02:12.8]} 15. Nc4 {[%clk 0:01:34.9]}
15... Ba6 {[%clk 0:02:12.7]} 16. Nfd2 {[%clk 0:01:34.6]} 16... Nc6 {[%clk
0:02:11.5]} 17. Bb2 {[%clk 0:01:34.9]} 17... Bb5 {[%clk 0:01:45.7]} 18. Rfe1
{[%clk 0:01:22.6]} 18... Nd7 {[%clk 0:01:35.5]} 19. Qf3 {[%clk 0:00:57.6]} 19...
Nb6 {[%clk 0:01:21.9]} 20. Bf1 {[%clk 0:00:55.2]} 20... a4 {[%clk 0:01:05.5]}
21. Nxb6 {[%clk 0:00:48.4]} 21... Qxb6 {[%clk 0:01:06.4]} 22. bxa4 {[%clk
0:00:48.2]} 22... Bxa4 {[%clk 0:01:05.6]} 23. Bc4 {[%clk 0:00:46.2]} 23... Ra7
{[%clk 0:01:04]} 24. Bd5 {[%clk 0:00:30.9]} 24... Nd4 {[%clk 0:00:54.4]} 25.
Bxd4 {[%clk 0:00:27.9]} 25... exd4 {[%clk 0:00:53.2]} 26. Nc4 {[%clk 0:00:20.3]}
26... Qc7 {[%clk 0:00:46.1]} 27. e5 {[%clk 0:00:20.4]} 27... Bxc2 {[%clk
0:00:44.4]} 28. Nd6 {[%clk 0:00:15.9]} 28... Rxe5 {[%clk 0:00:34.8]} 29. Nxf7
{[%clk 0:00:04.7]} 29... Rxe1+ {[%clk 0:00:19]} 30. Rxe1 {[%clk 0:00:05.6]}
30... Qxf7 {[%clk 0:00:03.6]} 31. Bxf7+ {[%clk 0:00:05.1]} 31... Rxf7 {[%clk
0:00:04.5]} 32. Qd5 {[%clk 0:00:04.7]} 32... Kf8 {[%clk 0:00:01.2]} 33. Qd6+
{[%clk 0:00:04.6]} 1-0